bitfinex-derivatives/quotes_ETHF0:USTF0_20250911
["timestamp","ask_amount","ask_price","bid_price","bid_amount"]
[1757633498673,3.9052,4462.9,4462.8,0.693]
[1757633502181,3.2078,4462.9,4462.8,0.693]
[1757633502980,3.4086,4462.9,4462.8,0.693]
[1757633503276,3.7097,4462.9,4462.8,0.693]
[1757633504178,3.7097,4462.9,4462.8,2.30315516]
[1757633505380,3.7097,4462.9,4462.8,0.693]
[1757633505590,3.7097,4462.9,4462.8,2.30315516]
[1757633506475,3.7097,4462.9,4462.8,0.693]
[1757633507484,3.7097,4462.9,4462.8,2.30315516]
[1757633508376,3.7097,4462.9,4462.8,0.693]
[1757633508576,3.9052,4462.9,4462.8,0.693]
[1757633508979,0.6974,4462.8,4462.7,1.61015516]
[1757633509183,0.6974,4462.7,4462.6,1.83615516]
[1757633509382,0.6974,4462.7,4462.6,2.03415516]
[1757633509586,0.6974,4462.7,4462.6,2.52915516]
[1757633510283,0.6974,4462.7,4462.6,0.919]
[1757633510580,0.6974,4462.7,4462.6,2.52738662]
[1757633511880,0.6974,4462.7,4462.6,2.52743261]
[1757633512079,0.6974,4462.7,4462.6,2.52743122]
[1757633512283,0.6974,4462.7,4462.6,0.919]
[1757633512679,0.6974,4462.7,4462.6,2.52749026]
[1757633512878,0.6974,4462.7,4462.6,0.919]
[1757633519789,0.6974,4462.7,4462.5,0.226]
[1757633520085,0.6974,4462.7,4462.6,1.60940707]
[1757633520382,0.5276,4462.5,4462.4,0.7468]
[1757633520588,0.5209,4462.5,4462.4,0.9534]
[1757633521586,3.2078,4462.9,4462.4,0.6422]
[1757633521790,0.5209,4462.8,4462.7,2.33708125]
[1757633521984,0.3196,4463.4,4462.8,0.3112]
[1757633522285,0.727,4463.4,4463.3,0.7274]
[1757633523082,0.727,4463.4,4463.3,2.33659257]
[1757633523285,0.727,4463.4,4463.3,0.7274]
[1757633523892,0.727,4463.4,4463.3,2.33659257]
[1757633524391,0.727,4463.4,4463.3,0.7274]
[1757633533206,0.727,4463.4,4463.3,0.7274]
[1757633533693,0.5209,4463.4,4463.3,0.7274]
[1757633534005,0.727,4463.4,4463.3,0.7274]
[1757633535298,0.3196,4463.3,4463.2,1.92039257]
[1757633535500,0.727,4463.3,4463.2,1.92039257]
[1757633535704,0.727,4463.3,4463.2,2.12999257]
[1757633536002,0.727,4463.3,4463.2,0.7274]
[1757633536202,0.727,4463.3,4463.2,2.33659257]
[1757633537303,0.727,4463.3,4463.2,2.73975257]
[1757633537501,3.328,4463.5,4463.4,0.81934]
[1757633537502,3.2078,4463.5,4463.4,0.81934]
[1757633537701,3.2078,4463.5,4463.4,2.96419865]
[1757633538205,3.2078,4463.5,4463.4,1.35654]
[1757633538903,0.3196,4463.9,4463.6,0.3112]
[1757633539108,0.8472,4463.5,4463.3,1.83309693]
[1757633539300,3.9348,4463.4,4463.3,0.226]
[1757633539703,3.9348,4463.4,4463.2,0.226]
[1757633541004,0.727,4463.2,4463.1,1.60709693]
[1757633541207,0.8472,4462.5,4462.4,1.81669693]
[1757633541407,0.727,4462.5,4462.4,2.33449693]
[1757633541905,0.727,4462.5,4462.4,0.7274]
[1757633542107,0.3196,4462.4,4462.3,0.4356]
[1757633542306,0.727,4462.4,4462.3,0.226]
[1757633542512,0.727,4462.4,4462.3,1.83421858]
[1757633542812,0.727,4462.4,4462.3,0.5208]
[1757633543012,0.727,4462.4,4462.3,0.7274]
[1757633543513,3.2078,4462.7,4462.6,0.3112]
[1757633543712,3.2078,4462.7,4462.6,0.9534]
[1757633544013,3.4091,4462.7,4462.6,0.9534]
[1757633544214,3.7287,4462.7,4462.6,0.9534]
[1757633545717,3.9348,4462.7,4462.6,0.9534]
[1757633546131,3.9348,4462.7,4462.6,0.4356]
[1757633546514,3.9348,4462.7,4462.6,0.7468]
[1757633547813,0.727,4462.7,4462.6,0.7468]
[1757633548014,0.3462,4463.0,4462.1,1.60821858]
[1757633548015,0.4222,4462.3,4462.1,1.60821858]
[1757633548217,0.5129,4462.2,4462.1,0.7053]
[1757633548422,0.7274,4462.2,4462.1,0.7053]
[1757633548814,0.5129,4462.5,4462.4,0.4127]
[1757633549016,0.5129,4462.5,4462.4,0.9313]
[1757633551628,0.3052,4462.4,4462.3,1.60770351]
[1757633551825,0.7274,4462.2,4462.1,2.10270351]
[1757633552721,0.7274,4462.2,4462.1,0.495]
[1757633552922,0.7274,4462.2,4462.1,2.31300351]
[1757633553124,0.2077,4462.2,4462.1,0.7053]
[1757633553629,0.3052,4462.5,4462.2,0.2926]
[1757633553817,0.5129,4462.5,4462.4,0.7053]
[1757633554021,0.7274,4462.5,4462.4,0.7053]
[1757633555425,0.8551,4462.5,4462.1,1.60693037]
[1757633555626,0.7274,4462.3,4462.2,0.227]
[1757633556028,0.2077,4462.3,4462.2,0.9323]
[1757633556232,0.3052,4462.6,4462.2,2.53923037]
[1757633556429,3.2078,4462.7,4462.5,0.5343]
[1757633556626,0.7274,4463.1,4463.0,0.4127]
[1757633556830,0.7274,4463.1,4463.0,0.7053]
[1757633558226,0.7274,4463.1,4463.0,0.495]
[1757633558426,0.7274,4463.1,4463.0,0.7053]
[1757633559129,0.4222,4462.8,4462.7,0.495]
[1757633559435,0.7274,4462.8,4462.7,0.495]
[1757633560332,0.7274,4462.8,4462.7,0.7053]
[1757633563638,0.8551,4462.5,4462.4,0.722]
[1757633563929,4.0629,4462.5,4462.4,0.722]
[1757633564340,3.7577,4462.5,4462.3,1.60693037]
[1757633564631,0.4222,4461.9,4461.8,1.60693037]
[1757633564935,3.513,4462.4,4461.9,0.2926]
[1757633565237,0.2077,4462.2,4462.1,2.31370912]
[1757633565529,0.7274,4462.2,4462.0,1.60840912]
[1757633565726,0.5499,4462.0,4461.8,1.60840912]
[1757633565923,0.4222,4461.7,4461.6,0.22412]
[1757633566127,0.7274,4461.7,4461.6,0.7053]
[1757633567233,0.7274,4461.7,4461.6,0.9323]
[1757633568131,0.7274,4461.7,4461.6,0.7053]
[1757633568323,0.7274,4461.7,4461.6,0.9323]
[1757633569837,0.2077,4461.7,4461.6,0.9323]
[1757633570334,0.5129,4461.7,4461.6,0.9323]
[1757633570836,0.5129,4461.7,4461.6,2.92406921]
[1757633571036,0.5129,4461.7,4461.6,0.9323]
[1757633574338,0.5129,4461.7,4461.6,1.33561]
[1757633574639,0.5129,4461.7,4461.6,0.9323]
[1757633578641,0.7274,4461.7,4461.6,0.9323]
[1757633580735,0.1167,4461.5,4461.3,1.99176921]
[1757633580936,0.3229,4461.3,4461.1,1.61041441]
[1757633581139,0.7399,4461.2,4461.1,1.61041441]
[1757633581344,0.7399,4461.2,4461.1,2.33791441]
[1757633581733,0.7399,4461.2,4461.1,0.7275]
[1757633581938,0.5275,4461.8,4461.7,0.4245]
[1757633582244,0.7399,4461.8,4461.7,0.7275]
[1757633582641,0.3229,4462.2,4462.1,0.2107]
[1757633582844,0.7399,4462.2,4462.1,0.7275]
[1757633585246,0.7399,4462.2,4462.1,0.2107]
[1757633585936,0.7399,4461.9,4461.8,0.7417]
[1757633586342,3.9477,4461.9,4461.8,0.7417]
[1757633586547,0.7399,4461.9,4461.8,0.7417]
[1757633586944,0.7399,4461.9,4461.8,0.9555]
[1757633587143,0.7399,4461.9,4461.8,0.7275]
[1757633588551,3.9477,4461.9,4461.8,0.7275]
[1757633589356,0.7399,4461.7,4461.6,1.83577728]
[1757633589558,0.7399,4461.7,4461.6,0.227]
[1757633589853,0.5337,4461.5,4461.3,1.60877728]
[1757633590050,0.8566,4461.5,4461.4,0.227]
[1757633590250,0.8566,4461.5,4461.2,1.60877728]
[1757633590251,0.3229,4461.4,4461.2,1.91177728]
[1757633590452,3.9477,4461.3,4461.2,0.303]
[1757633591049,3.9477,4461.3,4461.2,0.5137]
[1757633592558,0.7399,4461.3,4461.2,0.5137]
[1757633592951,0.7399,4461.3,4461.2,0.7275]
[1757633593151,0.7399,4461.3,4461.2,0.5137]
[1757633593555,0.7399,4461.3,4461.2,0.7275]
[1757633593855,0.7399,4461.1,4461.0,1.60877728]
[1757633594051,0.8566,4461.0,4460.9,1.60877728]
[1757633594250,0.1167,4460.5,4460.4,1.60877728]
[1757633594560,0.7399,4460.3,4460.2,2.12247728]
[1757633594853,0.7399,4460.3,4460.2,0.303]
[1757633595054,0.8566,4460.0,4459.9,0.227]
[1757633595250,0.8566,4460.0,4459.3,0.2107]
[1757633595251,0.7399,4459.4,4459.3,0.2107]
[1757633595446,3.9477,4459.4,4459.3,0.5137]
[1757633595958,0.7399,4459.9,4459.8,0.7275]
[1757633598958,0.7399,4459.9,4459.5,0.303]
[1757633599162,0.1167,4459.0,4458.8,1.60877728]
[1757633599459,0.7399,4458.9,4458.8,0.7275]
[1757633599652,3.2078,4459.2,4459.0,0.1223]
[1757633599852,3.9477,4459.2,4459.1,0.7275]
[1757633600959,3.9477,4459.2,4459.1,0.2107]
[1757633601173,3.9477,4459.2,4459.1,0.7275]
[1757633603755,0.417,4458.9,4458.8,0.303]
[1757633604053,0.7399,4458.8,4458.7,0.5137]
[1757633604857,0.7399,4458.8,4458.7,0.7275]
[1757633605258,0.2046,4458.9,4458.8,0.303]
[1757633605454,0.2046,4458.9,4458.6,0.228]
[1757633605765,0.2046,4458.9,4458.8,0.7275]
[1757633606765,0.5275,4458.9,4458.8,0.7275]
[1757633608256,0.7399,4458.9,4458.8,0.7275]
[1757633608656,0.417,4458.9,4458.8,0.7275]
[1757633608859,0.2046,4458.9,4458.8,0.7275]
[1757633613368,3.5051,4459.2,4458.8,0.7275]
[1757633613668,0.51,4459.1,4459.0,0.8273]
[1757633613965,0.7044,4459.1,4459.0,0.8273]
[1757633614162,0.7044,4459.1,4459.0,0.7061]
[1757633616161,0.7044,4459.1,4459.0,0.2052]
[1757633616763,0.7044,4459.1,4459.0,0.5035]
[1757633617753,0.7044,4459.1,4458.7,0.5263]
[1757633617957,0.4225,4459.0,4458.9,0.7061]
[1757633618167,0.7044,4459.0,4458.9,0.7061]
[1757633618468,0.2127,4459.0,4458.9,0.7061]
[1757633618867,0.51,4459.0,4458.9,0.7061]
[1757633620567,0.2127,4459.0,4458.9,0.7061]
[1757633622065,0.51,4459.6,4459.5,0.529]
[1757633622266,0.7044,4459.6,4459.5,0.8273]
[1757633622461,0.7044,4459.6,4459.5,0.7061]
[1757633623474,0.2127,4459.6,4459.5,0.8273]
[1757633623770,3.2078,4459.7,4459.6,0.2983]
[1757633623972,3.4205,4459.7,4459.6,0.7061]
[1757633624172,3.7178,4459.7,4459.6,0.7061]
[1757633624572,3.4205,4459.7,4459.6,0.7061]
[1757633624972,3.9122,4459.7,4459.6,0.7061]
[1757633628473,3.9122,4459.7,4459.6,0.2052]
[1757633628672,3.9122,4459.7,4459.5,1.83577728]
[1757633628872,0.7044,4459.6,4459.5,1.83577728]
[1757633629572,0.7044,4459.6,4459.5,0.227]
[1757633631268,0.4225,4459.5,4459.4,2.13407728]
[1757633631568,0.8296,4459.5,4459.3,1.60877728]
[1757633631766,0.2973,4459.3,4459.0,1.60877728]
[1757633631966,0.8296,4459.0,4458.9,1.60877728]
[1757633632176,0.8296,4459.0,4458.8,1.60877728]
[1757633632363,0.2973,4458.9,4458.8,1.60877728]
[1757633632569,0.7044,4458.9,4458.8,1.60877728]
[1757633633175,0.7044,4458.9,4458.8,1.81397728]
[1757633633370,0.7044,4458.9,4458.8,0.7061]
[1757633633675,3.4205,4459.1,4459.0,0.8273]
[1757633633976,3.9122,4459.1,4459.0,2.43957183]
[1757633634177,3.9122,4459.1,4459.0,2.31837183]
[1757633638077,3.9122,4459.1,4459.0,1.61227183]
[1757633638273,0.1289,4459.0,4458.8,1.61227183]
[1757633638474,0.1289,4459.0,4458.6,0.5348]
[1757633638475,0.7194,4458.8,4458.7,0.5206]
[1757633640571,0.4111,4458.8,4458.3,1.99176921]
[1757633640776,0.7194,4458.5,4458.4,0.9561]
[1757633641081,0.5164,4458.5,4458.4,0.9561]
[1757633642278,0.5164,4458.5,4458.4,1.35969]
[1757633642782,0.7194,4458.5,4458.4,0.9561]
[1757633643284,0.54,4458.5,4458.0,2.29956921]
[1757633643477,0.3083,4458.1,4458.0,2.29956921]
[1757633643683,0.7194,4458.1,4457.8,0.227]
[1757633643874,0.7194,4457.9,4457.8,0.227]
[1757633644381,0.7194,4457.9,4457.8,2.05127174]
[1757633644883,0.7194,4457.9,4457.8,2.35907174]
[1757633645379,0.7194,4457.9,4457.8,0.7476]
[1757633645682,0.7194,4457.9,4457.8,0.5206]
[1757633645885,0.7194,4457.9,4457.8,0.9561]
[1757633647584,0.4111,4457.7,4457.6,1.61147174]
[1757633647782,0.7194,4457.7,4457.6,2.56757174]
[1757633647986,0.3083,4458.0,4457.7,0.3078]
[1757633648283,3.2078,4458.6,4458.5,0.1278]
[1757633648482,3.2078,4459.1,4459.0,0.8569]
[1757633648792,3.2078,4459.1,4459.0,0.7291]
[1757633648793,3.9272,4459.1,4459.0,0.7291]
[1757633649579,3.9272,4459.1,4459.0,0.5206]
[1757633649882,3.9272,4459.1,4459.0,0.2128]
[1757633650884,3.9272,4459.1,4459.0,0.5206]
[1757633652789,3.9272,4459.1,4459.0,0.2128]
[1757633654287,3.9272,4459.1,4459.0,0.5206]
[1757633656286,3.9272,4459.1,4459.0,0.2128]
[1757633657489,0.54,4459.0,4458.9,0.5206]
[1757633657994,0.8483,4459.0,4458.9,0.5206]
[1757633658694,0.8483,4459.0,4458.9,0.7291]
[1757633658895,0.7194,4459.0,4458.9,0.7291]
[1757633660992,0.8483,4459.0,4458.9,0.7291]
[1757633664993,0.7194,4459.0,4458.9,0.7291]
[1757633665497,0.8483,4459.0,4458.9,0.7291]
[1757633669094,0.8483,4459.0,4458.8,1.60918861]
[1757633669285,0.2952,4458.8,4458.4,1.83618861]
[1757633669491,0.7013,4458.6,4458.5,0.5249]
[1757633669694,0.7013,4458.6,4458.5,0.8542]
[1757633669994,0.7013,4458.6,4458.5,2.46338861]
[1757633671895,3.6991,4459.0,4458.9,0.7329]
[1757633673391,3.9091,4459.0,4458.9,0.7329]
[1757633673896,4.0269,4459.0,4458.9,0.5249]
[1757633674096,4.0269,4459.0,4458.9,0.2082]
[1757633675696,3.3367,4459.5,4459.0,0.1213]
[1757633675899,3.6139,4459.5,4459.4,0.7329]
[1757633676087,3.2078,4459.5,4459.4,0.7329]
[1757633677004,0.1961,4459.6,4459.5,0.8542]
[1757633677297,0.2952,4459.9,4459.5,2.86851336]
[1757633677501,0.4913,4459.9,4459.8,0.7329]
[1757633677689,0.1961,4459.9,4459.8,0.7329]
[1757633678095,0.7013,4459.9,4459.8,0.7329]
[1757633679807,0.1961,4459.9,4459.8,2.34372336]
[1757633681302,0.1961,4459.9,4459.8,0.7329]
[1757633681504,0.1961,4459.9,4459.8,0.9599]
[1757633682006,0.7013,4459.9,4459.8,0.9599]
[1757633687705,0.4061,4459.9,4459.6,1.61082336]
[1757633687905,0.1178,4460.0,4459.1,2.39528921]
[1757633687906,0.8191,4459.5,4459.2,0.227]
[1757633688101,0.4061,4459.3,4459.2,0.227]
[1757633688305,0.7013,4459.3,4459.2,0.4352]
[1757633688502,0.1961,4459.3,4459.2,0.9599]
[1757633688906,0.4913,4459.3,4459.2,0.9599]
[1757633690708,0.4913,4459.3,4459.2,0.7329]
[1757633690908,0.4913,4459.3,4459.2,0.9599]
[1757633691703,3.6139,4460.1,4460.0,0.4162]
[1757633691910,3.6139,4460.1,4460.0,0.7329]
[1757633691911,3.9091,4460.1,4460.0,0.7329]
[1757633692511,0.7013,4460.1,4460.0,0.7329]
[1757633697905,0.7013,4460.1,4459.8,0.227]
[1757633698113,0.7309,4459.9,4459.6,0.3126]
[1757633698311,0.3183,4459.8,4459.6,0.5396]
[1757633698517,0.7309,4459.7,4459.6,0.7344]
[1757633698710,0.7309,4459.7,4459.6,0.9368]
[1757633698909,0.3183,4460.0,4459.7,0.3126]
[1757633699109,0.7309,4460.0,4459.9,0.7098]
[1757633699821,3.4067,4460.1,4460.0,0.8308]
[1757633700014,3.725,4460.1,4460.0,0.8308]
[1757633701413,3.725,4460.1,4460.0,1.0578]
[1757633701814,3.9387,4460.1,4460.0,0.9368]
[1757633703211,3.9387,4460.1,4460.0,0.7098]
[1757633704419,3.9387,4460.1,4460.0,0.8308]
[1757633704622,3.9387,4460.1,4460.0,0.7098]
[1757633705318,3.9387,4460.1,4460.0,2.32062336]
[1757633707819,3.9387,4460.1,4460.0,2.44162336]
[1757633708620,3.2078,4460.1,4460.0,0.8308]
[1757633708922,3.725,4460.1,4460.0,0.8308]
[1757633710221,0.3183,4460.5,4460.4,0.3972]
[1757633710525,3.2078,4461.1,4460.5,0.8308]
[1757633710526,0.5172,4460.6,4460.5,0.8308]
[1757633710722,0.3183,4460.9,4460.6,0.40337]
[1757633710913,0.5172,4460.9,4460.8,0.7098]
[1757633711422,0.7309,4460.9,4460.8,2.31963346]
[1757633712922,0.5172,4461.2,4461.1,0.7098]
[1757633713127,0.5172,4461.2,4461.1,0.9368]
[1757633715727,0.4126,4461.6,4461.5,0.3972]
[1757633715915,0.7309,4461.6,4461.5,0.9368]
[1757633719434,0.7309,4461.6,4461.5,1.0578]
[1757633724031,0.7309,4461.6,4461.5,0.9368]
[1757633724632,0.1989,4461.6,4461.5,1.0578]
[1757633725025,0.3183,4461.8,4461.5,1.0578]
[1757633725231,0.1989,4462.0,4461.8,0.3126]
[1757633725431,0.5172,4462.6,4462.5,0.3972]
[1757633725632,0.7309,4462.6,4462.5,0.7098]
[1757633727141,0.4377,4462.0,4461.9,40.8]
[1757633727329,0.7309,4461.8,4461.7,3.2078]
[1757633727728,0.7309,4461.8,4461.1,1.78883407]
[1757633727729,0.7309,4461.8,4461.3,0.2922]
[1757633727933,0.1194,4462.0,4461.0,0.7048]
[1757633727934,0.743,4461.1,4461.0,0.7048]
[1757633728133,0.743,4461.1,4461.0,0.9318]
[1757633733345,0.743,4461.1,4461.0,0.7048]
[1757633733545,0.743,4461.1,4461.0,0.9318]
[1757633735751,0.743,4461.1,4461.0,0.5007]
[1757633735951,0.743,4461.1,4461.0,0.7267]
[1757633738255,3.2078,4461.7,4461.1,0.69552]
[1757633738462,0.2092,4461.8,4461.7,0.4126]
[1757633738756,0.743,4461.8,4461.7,0.7048]
[1757633740852,0.743,4461.8,4461.7,0.5007]
[1757633741060,0.743,4461.8,4461.7,0.2085]
[1757633741565,3.9508,4461.8,4461.6,0.226]
[1757633741751,0.1278,4461.5,4461.4,1.81701258]
[1757633742059,0.8708,4461.5,4461.4,2.33521258]
[1757633743261,0.8708,4461.5,4461.4,1.60851258]
[1757633743562,0.8708,4461.5,4461.4,0.226]
[1757633748568,0.548,4461.5,4461.1,1.60851258]
[1757633748768,0.743,4461.3,4461.2,0.5007]
[1757633751069,0.743,4461.3,4461.2,0.7048]
[1757633752468,0.743,4461.3,4461.2,2.31331258]
[1757633755967,3.9508,4461.3,4461.1,1.60851258]
[1757633756170,0.8708,4461.0,4460.9,1.60851258]
[1757633756471,0.8708,4461.0,4460.9,2.31331258]
[1757633756771,0.743,4461.0,4460.9,2.31331258]
[1757633763276,0.743,4461.0,4460.9,0.7048]
[1757633763469,3.2078,4461.3,4461.2,0.7245]
[1757633763976,3.2078,4461.3,4461.2,2.33301258]
[1757633764174,3.2078,4461.3,4461.2,0.7245]
[1757633764366,3.2078,4461.3,4461.2,2.33301258]
[1757633764966,3.7242,4461.3,4461.2,2.33301258]
[1757633766171,3.2078,4461.3,4461.2,2.33301258]
[1757633769072,3.7242,4461.3,4461.2,2.33301258]
[1757633769871,3.2078,4461.3,4461.2,2.33301258]
[1757633770068,3.512,4461.8,4461.7,0.3215]
[1757633770272,3.7242,4461.8,4461.7,0.7245]
[1757633770468,3.9316,4461.8,4461.7,0.7245]
[1757633772281,3.42,4461.8,4461.7,2.33633694]
[1757633772581,3.42,4461.8,4461.7,0.7245]
[1757633773178,3.42,4461.8,4461.7,2.3361853]
[1757633773381,3.7242,4461.8,4461.7,2.3361853]
[1757633774384,3.2078,4462.3,4461.8,0.40326]
[1757633774580,0.7424,4462.2,4462.1,0.7245]
[1757633774789,0.5164,4462.2,4462.1,0.7245]
[1757633774970,0.7238,4462.2,4462.1,0.7245]
[1757633782588,0.5164,4462.2,4462.1,0.7245]
[1757633783594,0.5164,4462.2,4462.1,0.9505]
[1757633784694,0.5164,4462.2,4462.1,1.35374]
[1757633784888,0.2122,4462.5,4462.4,0.403]
[1757633785189,3.512,4462.8,4462.4,0.7245]
[1757633785396,3.9316,4462.8,4462.7,0.7245]
[1757633786394,3.2078,4462.8,4462.7,1.12769]
[1757633786589,3.6274,4462.8,4462.5,1.61142619]
[1757633786792,0.5164,4462.7,4462.6,1.3537]
[1757633786996,3.2078,4462.8,4462.7,0.3215]
[1757633787293,3.42,4462.8,4462.7,0.7245]
[1757633787498,3.7242,4462.8,4462.7,0.7245]
[1757633787693,0.5164,4462.8,4462.7,0.7245]
[1757633787899,0.2122,4462.8,4462.7,0.7245]
[1757633788695,0.5205,4462.8,4462.7,0.7245]
[1757633791102,0.226,4463.1,4462.7,0.403]
[1757633791302,0.3083,4463.0,4462.8,0.2931]
[1757633791506,0.518,4462.9,4462.8,0.6935]
[1757633793692,0.4228,4463.4,4463.3,0.4004]
[1757633793896,0.9571,4463.4,4463.3,0.6935]
[1757633794508,0.7311,4463.4,4463.3,0.6935]
[1757633794694,0.9571,4463.4,4463.3,0.6935]
[1757633795096,0.7311,4463.4,4463.3,0.6935]
[1757633795403,0.9571,4463.4,4463.3,0.6935]
[1757633796702,0.7311,4463.4,4463.3,0.6935]
[1757633796905,0.9571,4463.4,4463.3,0.6935]
[1757633797404,0.7311,4463.4,4463.3,0.6935]
[1757633797801,0.9571,4463.4,4463.3,0.6935]
[1757633798405,0.7311,4463.4,4463.3,0.6935]
[1757633798607,0.9571,4463.4,4463.3,0.6935]
[1757633799006,0.7311,4463.4,4463.3,0.6935]
[1757633799507,0.9571,4463.4,4463.3,0.6935]
[1757633801798,0.9571,4463.4,4463.3,0.488]
[1757633805217,0.9571,4463.4,4463.3,0.1949]
[1757633806216,0.9571,4463.4,4463.3,0.488]
[1757633810210,0.1282,4463.0,4462.9,1.61142619]
[1757633810413,0.3083,4462.8,4462.7,1.80632619]
[1757633810611,0.7311,4462.8,4462.7,2.01182619]
[1757633810814,0.9571,4462.8,4462.7,2.01182619]
[1757633811012,0.7311,4462.8,4462.7,2.30492619]
[1757633811221,0.9571,4462.8,4462.7,2.30492619]
[1757633812123,0.9571,4462.8,4462.7,0.6935]
[1757633816816,0.7311,4462.8,4462.7,0.6935]
[1757633817012,0.9571,4462.8,4462.7,0.6935]
[1757633818324,0.9571,4462.8,4462.4,1.99176921]
[1757633818518,0.3071,4462.7,4462.6,0.2147]
[1757633818723,0.7184,4462.7,4462.6,0.5117]
[1757633819020,0.1232,4462.5,4462.4,1.61259208]
[1757633819215,0.4113,4462.4,4462.3,1.61259208]
[1757633819418,0.6373,4462.4,4462.0,1.61259208]
[1757633819615,0.4113,4462.1,4462.0,1.61259208]
[1757633819829,0.4303,4462.0,4461.5,46.29656921]
[1757633820022,0.4303,4462.0,4461.5,3.7195]
[1757633820023,0.7184,4461.6,4461.5,3.7195]
[1757633820224,0.71626474,4461.6,4461.5,3.7195]
[1757633820727,0.71626474,4461.6,4461.5,3.5048]
[1757633822230,0.71626474,4461.6,4461.5,3.7195]
[1757633822432,0.71626474,4461.6,4461.5,0.5117]
[1757633823032,0.71626474,4461.6,4461.5,0.297]
[1757633823930,0.71626474,4461.6,4461.5,0.5117]
[1757633824128,0.3071,4461.4,4461.0,0.3373]
[1757633824331,0.3071,4461.2,4461.1,0.297]
[1757633824517,0.7184,4461.2,4461.1,0.5117]
[1757633824722,0.7184,4461.2,4461.1,0.7212]
[1757633825123,0.4113,4461.2,4461.1,0.7212]
[1757633825323,0.434,4461.2,4461.1,0.7212]
[1757633825629,0.6373,4461.2,4461.1,0.7212]
[1757633825925,0.226,4461.2,4461.1,0.4242]
[1757633826631,0.226,4461.2,4461.1,0.7212]
[1757633827129,0.7411,4461.2,4461.1,0.7212]
[1757633829031,0.434,4461.2,4461.1,0.7212]
[1757633829528,0.434,4461.2,4461.1,0.4242]
[1757633829529,0.226,4461.2,4461.1,0.4242]
[1757633830124,0.226,4461.2,4461.1,0.7212]
[1757633832430,3.2078,4461.5,4461.1,0.7212]
[1757633832631,0.226,4461.2,4461.1,0.7212]
[1757633834726,0.434,4461.2,4461.1,0.7212]
[1757633838136,0.9444,4461.2,4461.1,0.7212]
[1757633838432,0.9444,4461.2,4460.6,0.297]
[1757633838433,1.16856,4461.2,4460.6,0.297]
[1757633838635,0.7184,4461.2,4460.6,0.297]
[1757633838831,0.7184,4460.7,4460.6,0.5117]
[1757633839030,0.9444,4460.7,4460.6,0.5117]
[1757633839220,0.9444,4460.7,4460.6,0.7212]
[1757633841436,0.9444,4460.7,4460.6,0.5117]
[1757633841638,0.9444,4460.7,4460.6,0.297]
[1757633845135,0.6373,4460.7,4460.4,3.5048]
[1757633845335,0.8416,4460.5,4460.0,0.1277]
[1757633846142,0.8416,4460.5,4460.1,0.297]
[1757633846342,0.4113,4460.5,4460.4,0.5117]
[1757633846545,0.6373,4460.5,4460.4,0.5117]
[1757633847043,0.9444,4460.5,4460.4,0.297]
[1757633847945,0.9444,4460.5,4460.4,0.7085]
[1757633849056,0.208,4460.5,4460.4,0.7085]
[1757633849351,0.7489,4460.5,4460.4,0.7085]
[1757633850153,0.9548,4460.5,4460.4,0.7085]
[1757633852952,0.9548,4460.5,4460.2,0.3223]
[1757633853150,0.226,4460.4,4460.3,0.2065]
[1757633853453,0.9584,4460.4,4460.3,0.5288]
[1757633853751,0.9584,4460.4,4460.3,0.7256]
[1757633854447,0.6435,4460.4,4460.3,0.7256]
[1757633854651,3.331,4461.0,4460.3,0.7256]
[1757633854951,0.9584,4460.9,4460.8,0.7256]
[1757633864158,0.9584,4460.9,4460.5,0.124]
[1757633864362,0.9584,4460.9,4460.6,0.3223]
[1757633864544,0.9584,4460.9,4460.1,0.3223]
[1757633864751,0.7324,4460.2,4460.1,0.5288]
[1757633864953,0.9584,4460.2,4460.1,0.5288]
[1757633866659,0.9584,4460.2,4460.1,0.7256]
[1757633870359,0.9584,4460.2,4460.1,0.5288]
[1757633870962,0.9584,4460.2,4459.6,0.3223]
[1757633871457,0.7324,4459.7,4459.6,0.5288]
[1757633871661,0.9584,4459.7,4459.6,0.5288]
[1757633872365,0.9584,4459.7,4459.6,0.7256]
[1757633877267,0.7324,4459.7,4459.6,0.7256]
[1757633877466,0.9584,4459.7,4459.6,0.7256]
[1757633880571,0.9584,4459.7,4459.6,0.3223]
[1757633883571,0.9584,4459.7,4459.1,0.3056]
[1757633883772,0.7248,4459.2,4459.1,0.5165]
[1757633883967,0.5178,4459.1,4459.0,0.2109]
[1757633884172,0.7248,4459.1,4459.0,0.5165]
[1757633884868,0.7248,4459.1,4459.0,0.3056]
[1757633887175,0.7248,4459.1,4458.6,0.3056]
[1757633887378,0.7248,4458.7,4458.6,0.7112]
[1757633887674,0.9508,4458.7,4458.6,0.7112]
[1757633888373,0.9508,4458.7,4458.6,0.5165]
[1757633888570,0.9508,4458.7,4458.6,0.3056]
[1757633888974,0.402,4458.3,4458.2,0.7112]
[1757633889269,0.9508,4458.3,4458.2,0.7112]
[1757633889676,0.628,4458.3,4458.2,0.7112]
[1757633889876,0.5298,4458.6,4458.5,0.5289]
[1757633890070,0.9508,4458.6,4458.5,0.8345]
[1757633891475,0.226,4458.7,4458.6,0.7112]
[1757633891778,0.226,4458.8,4458.7,0.7112]
[1757633892775,3.2078,4459.3,4459.0,0.1233]
[1757633893078,3.9326,4459.3,4459.2,0.7112]
[1757633893274,3.9326,4459.3,4459.2,0.3056]
[1757633893479,3.9326,4459.3,4458.6,0.3056]